Cogmind - Beta 14 @@@ ROGUE MODE // 2024.09.09 @ 01:46:22 Player: CONM Result: Destroyed by Y-45 Defender with Beam Rifle Performance ------------- Evolutions (1) 500 Regions Visited (3) 600 Robots Destroyed (17) 85 Value Destroyed (361) 361 Prototype IDs (2) 40 Alien Tech Used (0) 0 Bonus (0) 0 TOTAL SCORE: 1586 Bonus ------- None Cogmind --------- Core Integrity 0/400 Matter 300/300 Energy 99/100 System Corruption 13% Temperature Cool (9) Movement Core (50) Location -9/Storage Parts ------- > --- POWER (1) -------- (None) > --- PROPULSION (3) --- (None) > --- UTILITY (3) ------ (None) > --- WEAPON (2) ------- (None) > --- INVENTORY (5) ---- Ion Engine Ion Engine Aluminum Leg High-capacity Battery (250) Medium Matter Pod (100) Peak State ------------ > --- POWER ------------ Improved Ion Engine > --- PROPULSION ------- Wheel Wheel Compact Wheel > --- UTILITY ---------- Huge Storage Unit Improved Terrain Scanner Light Armor Plating > --- WEAPON ----------- Assault Rifle Light Assault Rifle > --- INVENTORY -------- Ion Engine Ion Engine Light Ion Engine Light Ion Engine Aluminum Leg Aluminum Leg Aluminum Leg Aluminum Leg High-capacity Battery Medium Matter Pod Medium Matter Pod Medium Matter Pod Sensor Array Hammer [Rating: 13] Favorites ----------- Power Ion Engine Engine Ion Engine Propulsion Wheel Leg Aluminum Leg Wheel Wheel Utility Huge Storage Unit Device Improved Terrain Scanner Storage Huge Storage Unit Protection Light Armor Plating Weapon Light Assault Rifle Ballistic Gun Light Assault Rifle Impact Weapon Hammer Build | -11 -10 -9 -9 ------- Run | Yrd Mat Mat Sto Slots Evolved 2 | . . 2 . Power . | . . . . Propulsion 1 | . . 1 . Utility 1 | . . 1 . Weapon . | . . . . Parts Attached 20 | 6 3 11 . Power 3 | 1 . 2 . Engine 3 | 1 . 2 . Core . | . . . . Reactor . | . . . . Propulsion 10 | 2 2 6 . Treads . | . . . . Leg 5 | 2 . 3 . Wheel 5 | . 2 3 . Hover . | . . . . Flight . | . . . . Utility 3 | 1 1 1 . Device 1 | 1 . . . Storage 1 | . 1 . . Processor . | . . . . Hackware . | . . . . Protection 1 | . . 1 . Artifact . | . . . . Weapon 4 | 2 . 2 . Energy Gun . | . . . . Energy Cannon . | . . . . Ballistic Gun 3 | 2 . 1 . Ballistic Cannon . | . . . . Launcher . | . . . . Special Weapon . | . . . . Impact Weapon 1 | . . 1 . Slashing Weapon . | . . . . Piercing Weapon . | . . . . Special Melee Weapon . | . . . . Unidentified Prototypes . | . . . . Corrupted Parts 1 | . . 1 . System Corruption 13 | . . 13 . Parts Lost 13 | . . 9 4 Power 2 | . . 1 1 Propulsion 6 | . . 4 2 Utility 2 | . . 2 . Weapon 3 | . . 2 1 Highest Loss Streak 6 | . . 6 4 To Critical Strikes . | . . . . Average Slot Usage (%) 85 | . 99 76 67 Engine 11 | . 14 9 9 Leg 5 | . . 6 19 Wheel 20 | . 27 18 7 Device 9 | . 14 7 . Storage 11 | . 13 11 9 Protection 1 | . . 3 . Ballistic Gun 20 | . 28 16 9 Impact Weapon 2 | . . 3 9 Peak Build Rating 13 | 8 10 13 9 Average Rating 9 | 4 9 10 8 On Entrance 6 | . 8 10 9 Naked Turns 6 | . . . 6 Heaviest Build 94 | 9 89 94 90 Greatest Support 36 | 20 20 36 20 Greatest Overweight (x) 9 | . 4 9 8 Average Overweight (x) 4 | . 3 5 7 Largest Inventory Capacity 25 | 5 25 25 25 Average Capacity 22 | 5 24 25 23 Most Carried 15 | 3 10 15 11 Average Carried 9 | 1 8 12 10 Final Capacity 25 | 5 25 25 5 Final Carried 11 | 3 10 11 5 Class Distribution -------------------- 73% | Mutant 26% | Scavenger-Mutant Dominant Class ---------------- Mutant | -10/Materials Mutant | -9/Materials Scavenger-Mutant | -9/Storage Resources | -11 -10 -9 -9 ----------- Run | Yrd Mat Mat Sto Matter Collected 689 | 210 . 479 . Remotely . | . . . . Salvage Created 613 | 50 70 493 . Parts 37 | 4 3 30 . Haulers Intercepted 1 | . . 1 . Recyclers Shooed 1 | . . 1 . Parts Field Recycled . | . . . . Retrieved Matter . | . . . . Parts Self-Destructed . | . . . . Prevented . | . . . . Kills | -11 -10 -9 -9 ------- Run | Yrd Mat Mat Sto Combat Hostiles Destroyed 11 | . 2 9 . Guns 9 | . 2 7 . Classes Destroyed 7 | 1 1 5 . Worker 2 | . . 2 . Tunneler 2 | 2 . . . Hauler 1 | . . 1 . Recycler 1 | . . 1 . Swarmer 3 | . . 3 . Grunt 6 | . 2 4 . Sentry 2 | . . 2 . Best Kill Streak 4 | 1 2 4 . Combat Bots Only 3 | . 2 3 . Max Kills in Single Turn 1 | 1 1 1 . Gunslinging . | . . . . Exploded . | . . . . Melee . | . . . . Uniques/NPCs Destroyed . | . . . . Combat | -11 -10 -9 -9 -------- Run | Yrd Mat Mat Sto Hostile Shots Fired 153 | . 14 100 39 Missed 41 | . 7 20 14 Damage Taken 1480 | . 80 1034 366 Core 438 | . 33 268 137 Absorbed by Shields . | . . . . Core Remaining (%) 93 | 100 86 . . Volleys Fired 71 | 2 10 54 5 Largest 2 | 2 2 2 1 Hottest 40 | 40 40 40 23 Shots Fired 109 | 4 20 80 5 Gun 109 | 4 20 80 5 Cannon . | . . . . Launcher . | . . . . Special . | . . . . Kinetic 109 | 4 20 80 5 Thermal . | . . . . Explosive . | . . . . Electromagnetic . | . . . . Robot Hit Streak 10 | 2 4 10 2 Robot Miss Streak 3 | . 2 3 3 Penetration Max . | . . . . Secondary Targets . | . . . . Shots Hit Robots 77 | 2 12 61 2 Core Hits 31 | 2 5 23 1 Critical Kills . | . . . . Critical Parts Destroyed 3 | . 1 2 . Critical Strikes 3 | . 1 2 . Destroy 2 | . 1 1 . Smash 1 | . . 1 . Melee Attacks 12 | . . 12 . Impact 12 | . . 12 . Slashing . | . . . . Piercing . | . . . . Sneak Attacks . | . . . . Combat Hostiles . | . . . . Follow-up Attacks . | . . . . Damage Inflicted 924 | 21 116 740 47 Guns 744 | 21 116 576 31 Cannons . | . . . . Explosions . | . . . . Melee 164 | . . 164 . Ramming 16 | . . . 16 Kinetic 744 | 21 116 576 31 Thermal . | . . . . Explosive . | . . . . Electromagnetic . | . . . . Impact 164 | . . 164 . Slashing . | . . . . Piercing . | . . . . Highest Corruption 13 | . . 13 13 Average Corruption 13 | . . 13 13 Corruption Purged . | . . . . Corruption Blocked . | . . . . Effects 12 | . . 7 5 Message Errors 2 | . . 1 1 Matter Fused 3 | . . 2 1 Heat Flow Errors 1 | . . 1 . Energy Discharges 1 | . . 1 . Data Loss (minor) 1 | . . 1 . Data Loss (major) 2 | . . 1 1 Misdirections 2 | . . . 2 Overload Shots . | . . . . Overflow Damage 35 | . . 35 . Projectiles . | . . . . Explosions . | . . . . Melee 35 | . . 35 . Knockbacks 2 | . . 2 . Impact 1 | . . 1 . Kinetic . | . . . . Secondary 1 | . . 1 . Self-Inflicted Damage 7 | . . . 7 Shots . | . . . . Rammed 4 | . . . 4 Targets Rammed 4 | . . . 4 Kicked . | . . . . Crushed . | . . . . Highest Temperature 212 | . 6 212 6 Average Temperature 18 | . 6 19 6 Received Heat Transfer 690 | . 42 468 180 Siege Activations . | . . . . Robots Corrupted 2 | . . 2 . Combat Hostiles 2 | . . 2 . Parts Fried 1 | . . 1 . Impact Corruptions 2 | . . 2 . Robots Melted . | . . . . Combat Hostiles . | . . . . Parts Melted . | . . . . Heat Transferred . | . . . . Parts Sabotaged . | . . . . Parts Stolen . | . . . . Parts Stripped . | . . . . Power Chain Reactions . | . . . . Alert | -11 -10 -9 -9 ------- Run | Yrd Mat Mat Sto Peak Influence 222 | 10 83 222 74 Initial 17 | . 6 . 17 Average 60 | 2 36 96 38 Maximum Alert Level 1 | . . 1 . Low Security (%) 92 | 100 100 84 100 Level 1 7 | . . 15 . Level 2 . | . . . . Level 3 . | . . . . Level 4 . | . . . . Level 5 . | . . . . High Security . | . . . . Max Security . | . . . . Squads Dispatched 2 | . 1 . 1 Investigation . | . . . . Extermination . | . . . . Reinforcement 2 | . 1 . 1 Assault . | . . . . Garrison . | . . . . Intercept . | . . . . Searches Triggered . | . . . . Construction Impeded . | . . . . Haulers Reinforced . | . . . . Active Scanning Responses . | . . . . Cargo Convoy Interrupts . | . . . . Stealth | -11 -10 -9 -9 --------- Run | Yrd Mat Mat Sto Distress Signals 3 | . 1 1 1 Communications Jammed . | . . . . Distress Signals . | . . . . Times Spotted 27 | . 4 19 4 Peak Tracking Total 6 | . 3 6 5 Tactical Retreats 3 | . . 1 2 Traps | -11 -10 -9 -9 ------- Run | Yrd Mat Mat Sto Traps Triggered . | . . . . Indirectly . | . . . . Trap Hack Attempts . | . . . . Triggered . | . . . . Disarmed . | . . . . Reprogrammed . | . . . . Reused . | . . . . Traps Extracted . | . . . . Installed . | . . . . Triggered . | . . . . Machines | -11 -10 -9 -9 ---------- Run | Yrd Mat Mat Sto Machines Disabled . | . . . . Max in Single Turn . | . . . . Machines Repaired . | . . . . Machines Dismantled . | . . . . Machines Sabotaged . | . . . . Overloaded Fab Kills . | . . . . Hacking | -11 -10 -9 -9 --------- Run | Yrd Mat Mat Sto Machines Accessed 4 | . 3 . 1 Terminals 4 | . 3 . 1 Fabricators . | . . . . Repair Stations . | . . . . Recycling Units . | . . . . Scanalyzers . | . . . . Garrison Access . | . . . . Total Hacks 7 | . 5 . 2 Successful 4 | . 3 . 1 Failed 3 | . 2 . 1 Catastrophic . | . . . . Database Lockouts . | . . . . Manual 3 | . 3 . . Terminals 7 | . 5 . 2 Fabricators . | . . . . Repair Stations . | . . . . Recycling Units . | . . . . Scanalyzers . | . . . . Garrison Access . | . . . . Terminal Hacks 3 | . 2 . 1 Part Schematic 1 | . . . 1 Prototype ID Bank 1 | . 1 . . Registered Components 1 | . 1 . . Fabricator Hacks . | . . . . Repair Station Hacks . | . . . . Recycling Unit Hacks . | . . . . Scanalyzer . | . . . . Garrison Access Hacks . | . . . . Unauthorized Hacks 1 | . 1 . . Terminals 1 | . 1 . . Botnet 1 | . 1 . . Fabricators . | . . . . Repair Stations . | . . . . Recycling Units . | . . . . Scanalyzers . | . . . . Garrison Access . | . . . . Data Cores Recovered . | . . . . Used . | . . . . Hacking Detections 4 | . 3 . 1 Full Trace Events . | . . . . Feedback Events . | . . . . Feedback Blocked . | . . . . Robot Schematics Acquired . | . . . . Robots Built . | . . . . Authchips . | . . . . Time . | . . . . Total Robot Build Rating . | . . . . Part Schematics Acquired 1 | . . . 1 Parts Built . | . . . . Authchips . | . . . . Time . | . . . . Total Part Build Rating . | . . . . Parts Repaired . | . . . . Time . | . . . . Parts Recycled . | . . . . Recycled Matter . | . . . . Retrieved Matter . | . . . . Retrieved Components . | . . . . Parts Scanalyzed . | . . . . Part Schematics Acquired . | . . . . Parts Damaged . | . . . . Bothacking | -11 -10 -9 -9 ------------ Run | Yrd Mat Mat Sto Used RIF Installer . | . . . . Robots Hacked . | . . . . Non-combat . | . . . . Combat . | . . . . Robot Hacks Applied . | . . . . Relay Couplers Released . | . . . . Fabnet Peak Effective % . | . . . . Robots Rewired . | . . . . Allies Hacked . | . . . . Hacks Repelled . | . . . . Allies | -11 -10 -9 -9 -------- Run | Yrd Mat Mat Sto Total Allies . | . . . . Largest Group . | . . . . Highest-Rated Group . | . . . . Highest-Rated Ally . | . . . . Total Orders . | . . . . Ally Attacks . | . . . . Total Damage . | . . . . Kills . | . . . . Allies Corrupted . | . . . . Allies Melted . | . . . . Intel | -11 -10 -9 -9 ------- Run | Yrd Mat Mat Sto Robot Analysis Total . | . . . . Derelict Logs Recovered . | . . . . Drone Launches . | . . . . Drone Recoveries . | . . . . Exploration | -11 -10 -9 -9 ------------- Run | Yrd Mat Mat Sto Turns Passed 1184 | 116 430 540 98 Spaces Moved 617 | 85 280 212 40 Core 7 | 4 . . 3 Treads . | . . . . Legs 91 | 81 4 2 4 Wheels 519 | . 276 210 33 Hover . | . . . . Flight . | . . . . Fastest Speed 50 | 50 120 116 50 Average Speed 148 | 116 139 161 208 Slowest Speed 400 | 120 140 260 400 Overloaded Moves . | . . . . Propulsion Burnouts . | . . . . Robots Hopped . | . . . . Cave-ins Triggered . | . . . . Exploration Rate (%) 17 | 5 36 16 11 Regions Visited 3 Branch Regions 1 Pre-discovered Areas . | . . . . Known Exits Taken . | . . . . Unknown Exits Taken 3 | 1 1 1 . Scrap Searched . | . . . . Spaces Dug . | . . . . Terrain Destroyed . | . . . . Melee . | . . . . Projectile . | . . . . AOE . | . . . . Terrain Rammed . | . . . . Walls Destroyed . | . . . . Machines Disabled . | . . . . Actions | -11 -10 -9 -9 --------- Run | Yrd Mat Mat Sto Total 756 | 95 299 313 49 Wait 21 | . . 21 . Move 614 | 84 279 211 40 Hop . | . . . . Pick Up 14 | 3 7 4 . Fast Attach 12 | 6 1 5 . Attach 4 | . . 4 . Detach . | . . . . Swap 4 | . 2 2 . Drop . | . . . . Fire 71 | 2 10 54 5 Melee 12 | . . 12 . Ram 4 | . . . 4 Kick . | . . . . Crush . | . . . . Escape Stasis . | . . . . Rewire . | . . . . Trap . | . . . . Miscellaneous . | . . . . Route ------- -11/Scrapyard -10/Materials (discovered 2 exits: [*Mat] / [*Min]) -9/Materials -9/Storage History --------- Turn | Location | Event 3 | -11/Scrapyard | Discovered new exit (range 15) 117 | -11/Scrapyard | Entered Materials 182 | -10/Materials | Discovered new exit (range 10) 317 | -10/Materials | Build established: Mutant 526 | -10/Materials | Discovered new exit (range 4) 547 | -10/Materials | Entered another Materials area 547 | -9/Materials | Evolved 2 slots: Propulsion x1, Utility x1 547 | -9/Materials | Discovered new exit (range 9) 927 | -9/Materials | System corruption reached 10% 933 | -9/Materials | Core integrity fell below 50% 948 | -9/Materials | Lost 6 parts (1p3n1u1w) 1087 | -9/Materials | Entered Storage 1179 | -9/Storage | Released all parts (3) 1180 | -9/Storage | Core integrity fell below 20% 1185 | -9/Storage | Destroyed by Y-45 Defender with Beam Rifle Last Messages --------------- >>Schematic(Med. Reactive Plating) Downloading schematic... Med. Reactive Plating Rating: 4 Schematic downloaded. 01118_ System corrupted: Matter fused (-8). 01145_ System corrupted: Substantial component data lost. 01153_ ALERT: Hostiles spotted, dispatching reinforcements to Terminal S011. 01153_ Wheel destroyed. 01153_ Critical hit (Burn: +37). 01171_ QC1:OSD%N|NNPO#VQE Map ----- +----------------------------------------------------+ | | | | | | | | | | | | | | | | | | | | | | | | | | | | | | | ???????????????##########????????????????????????? | | ???????????????# #########???????????##### | | ???????????????# "T" # #???????????# | | ???????????????# !**!# ############# | | ??????????????# =!!/Y# + | | ???????????????#########/# ############# # | | ???????????????????????#%# #???????????# # | | ???????????????????????#%##+######???????????# # | | ???????????????????????#%Y #????????????????# # | | ???????????????????????# r #????????????????# # | | ???????????????????????#Y@ #????????????????+ + | | ???????????????????????# #????????????????# # | | ???????????????????????+ #????????????????# # | | ???????????????????????# #????????????????# # | | ???????????????????????# #????????????????# # | | ???????????????????????+ r/????????????????# # | | ???????????????????????#### ##???????????????# # | | ??????????????????????????? #????????????????# # | | ??????????????????????????? ????????????????# # | | ??????????????????????????? ????????????????? ? | | ??????????????????????????? #???????????????????? | | ???????????????????????????+##???????????????????? | | ?????????????????????????????????????????????????? | | ?????????????????????????????????????????????????? | | ?????????????????????????????????????????????????? | | ?????????????????????????????????????????????????? | | ?????????????????????????????????????????????????? | | ?????????????????????????????????????????????????? | | ?????????????????????????????????????????????????? | | ?????????????????????????????????????????????????? | | ?????????????????????????????????????????????????? | | ?????????????????????????????????????????????????? | | ?????????????????????????????????????????????????? | | ?????????????????????????????????????????????????? | | ?????????????????????????????????????????????????? | +----------------------------------------------------+ Best States ------------- Heat Dissipation 28 Energy Generation 12 Energy Capacity 265 Matter Stores 300 Matter Capacity 300 Sight Range 16 Terrain Scan Range 16 Terrain Scan Density 10 Armor Coverage 150 Evasion (%) 55 Item Schematics ----------------- Med. Reactive Plating | -9/Storage | Hacked Robot Schematics ------------------ None Fabricated ------------ Nothing Alien Tech Used ----------------- None Achievements -------------- None Challenges ------------ None Game ------ Seed AuthchipXenonReplica Manual? 0 Play Time 00:10:20 Cumulative 72.6 hours Start 2024.09.09 @ 01:37:00 End 2024.09.09 @ 01:46:22 Sessions 1 Manual Loads 0 Difficulty Rogue Special Mode None Game No. 98 Rogue 98 Adventurer 0 Explorer 0 Win Type - Total 0 Types 0/0/0/0/0/0/0/0/0 Lore% 35 Gallery% 36 Achievement% 39 Wizard Run 0 Options --------- Layout 0 ASCII 0 Keyboard 0 Movement Arrows Keybinds 0 Fullscreen 1 Font 20/SmallcapsGlow Map View 66x50 Zoom Use 0% Tactical HUD 1 Map Filters NONE Filters NONE Steam 1 RUN: ae8539e1-5911-4515-8d09-4e327d7faa98